fUSD/lending_fUSD_20240628
["ID","MTS","AMOUNT","RATE_DAILY","PERIOD"]
[330567431,1719579050770,-500.0,0.00021917,3]
[330567432,1719579050779,-500.0,0.00021917,3]
[330567433,1719579050788,-500.0,0.00021917,3]
[330567434,1719579050799,-500.0,0.00021917,3]
[330567435,1719579050809,-500.0,0.00021917,3]
[330567436,1719579050819,-1141.07,0.00021917,3]
[330567437,1719579050829,-500.0,0.00021917,3]
[330567438,1719579050838,-4975.64,0.00021917,3]
[330567439,1719579050848,-857.41,0.00021917,3]
[330567440,1719579050857,-7080.5,0.00021917,3]
[330567441,1719579050870,-2637.95,0.00021917,3]
[330567442,1719579050879,-876.36,0.00021917,3]
[330567443,1719579050889,-500.0,0.00021917,3]
[330567444,1719579050898,-500.0,0.00021917,3]
[330567445,1719579050908,-500.0,0.00021917,3]
[330567446,1719579050917,-1661.63,0.00021917,3]
[330567447,1719579050927,-500.0,0.00021917,3]
[330567448,1719579050936,-2936.59,0.00021917,3]
[330567449,1719579050945,-1140.84,0.00021917,3]
[330567450,1719579050955,-1128.13,0.00021917,3]
[330567451,1719579050964,-1025.35,0.00021917,3]
[330567452,1719579050974,-675.66,0.00021917,3]
[330567453,1719579050983,-500.0,0.00021917,3]
[330567454,1719579050993,-500.0,0.00021917,3]
[330567455,1719579051002,-500.0,0.00021917,3]
[330567456,1719579051012,-500.0,0.00021917,3]
[330567457,1719579051022,-14020.7,0.00021917,3]
[330567458,1719579051031,-4419.51,0.00021917,3]
[330567459,1719579051040,-1609.74,0.00021917,3]
[330567460,1719579051050,-578.7,0.00021917,3]
[330567461,1719579051059,-3313.57,0.00021917,3]
[330567462,1719579051069,-500.0,0.00021917,3]
[330567463,1719579051078,-4253.48,0.00021917,3]
[330567464,1719579051088,-3802.44,0.00021917,3]
[330567465,1719579051097,-500.0,0.00021917,3]
[330567466,1719579051108,-500.0,0.00021917,3]
[330567467,1719579051120,-500.0,0.00021917,3]
[330567468,1719579051129,-704.95,0.00021917,3]
[330567469,1719579051139,-500.0,0.00021917,3]
[330567470,1719579051149,-2089.85,0.00021917,3]
[330567471,1719579051158,-562.38,0.00021917,3]
[330567472,1719579051167,-553.103694,0.00021917,2]
[330567473,1719579051177,-500.0,0.00021917,3]
[330567474,1719579051186,-710.58,0.00021917,3]
[330567475,1719579051196,-951.05,0.00021917,3]
[330567476,1719579051205,-1089.17,0.00021917,3]
[330567477,1719579051215,-1330.69,0.00021917,3]
[330567478,1719579051226,-2562.4,0.00021917,3]
[330567479,1719579051236,-822.33,0.00021917,3]
[330567480,1719579051247,-553.103694,0.00021917,2]
[330567481,1719579051257,-2500.0,0.00021917,3]
[330567482,1719579051267,-500.0,0.00021917,3]
[330567483,1719579051277,-6594.05,0.00021917,3]
[330567484,1719579051287,-2281.36,0.00021917,3]
[330567485,1719579051298,-543.44,0.00021917,3]
[330567486,1719579051308,-1067.56,0.00021917,3]
[330567487,1719579051319,-500.0,0.00021917,3]
[330567488,1719579051329,-151.0,0.00021917,2]
[330567489,1719579051338,-1091.39,0.00021917,3]
[330567490,1719579051348,-1327.66,0.00021917,3]
[330567491,1719579051357,-500.0,0.00021917,3]
[330567492,1719579051368,-500.0,0.00021917,3]
[330567493,1719579051378,-891.53,0.00021917,3]
[330567494,1719579051387,-948.34,0.00021917,3]
[330567495,1719579051397,-3979.19,0.00021917,3]
[330567496,1719579051407,-3441.04,0.00021917,3]
[330567497,1719579051416,-1491.92,0.00021917,3]
[330567498,1719579051426,-829.07,0.00021917,3]
[330567499,1719579051436,-151.0,0.00021917,2]
[330567500,1719579051445,-500.0,0.00021917,3]
[330567501,1719579051455,-500.0,0.00021917,3]
[330567502,1719579051465,-500.0,0.00021917,3]
[330567503,1719579051475,-1155.94,0.00021917,3]
[330567504,1719579051485,-4050.08,0.00021917,3]
[330567505,1719579051494,-3978.22,0.00021917,3]
[330567506,1719579051504,-500.0,0.00021917,3]
[330567507,1719579051514,-3495.46,0.00021917,3]
[330567508,1719579051523,-500.0,0.00021917,3]
[330567509,1719579051533,-500.0,0.00021917,3]
[330567510,1719579051542,-500.0,0.00021917,3]
[330567511,1719579051551,-2232.9,0.00021917,3]
[330567512,1719579051561,-500.0,0.00021917,3]
[330567513,1719579051570,-2105.53,0.00021917,3]
[330567514,1719579051580,-3468.22,0.00021917,3]
[330567515,1719579051590,-1155.31,0.00021917,3]
[330567516,1719579051600,-1367.66,0.00021917,3]
[330567517,1719579051610,-500.0,0.00021917,3]
[330567518,1719579051622,-666.67,0.00021917,3]
[330567519,1719579051631,-599.52,0.00021917,3]
[330567520,1719579051646,-1219.96,0.00021917,3]
[330567521,1719579051655,-726.77,0.00021917,3]
[330567522,1719579051664,-613.32869173,0.00021917,3]
[330567523,1719579051674,-500.0,0.00021917,3]
[330567524,1719579051684,-500.0,0.00021917,3]
[330567525,1719579051694,-500.0,0.00021917,3]
[330567526,1719579051804,-1814.65,0.00021917,3]
[330567527,1719579051815,-500.0,0.00021917,3]
[330567528,1719579051825,-1023.0,0.00021917,3]
[330567529,1719579051835,-557.8437298,0.00021917,2]
[330567530,1719579051844,-500.0,0.00021917,3]
[330567531,1719579051853,-499.34661992,0.00021917,2]
[330567532,1719579051865,-500.0,0.00021917,3]
[330567533,1719579051874,-2644.39,0.00021917,3]
[330567534,1719579051883,-929.2,0.00021917,3]
[330567535,1719579051893,-3456.27,0.00021917,3]
[330567536,1719579051902,-1131.06,0.00021917,3]
[330567537,1719579051912,-157.02188,0.00021917,2]
[330567538,1719579051921,-7070.29,0.00021917,3]
[330567539,1719579051931,-500.0,0.00021917,3]
[330567540,1719579051940,-606.5,0.00021917,3]
[330567541,1719579051950,-500.0,0.00021917,3]
[330567542,1719579051960,-500.0,0.00021917,3]
[330567543,1719579051970,-500.0,0.00021917,3]
[330567544,1719579051980,-151.0,0.00021917,2]
[330567545,1719579051989,-3610.02,0.00021917,3]
[330567546,1719579051999,-500.0,0.00021917,3]
[330567547,1719579052008,-7012.95,0.00021917,3]
[330567548,1719579052017,-764.78,0.00021917,3]
[330567549,1719579052027,-500.0,0.00021917,3]
[330567550,1719579052036,-500.0,0.00021917,3]
[330567551,1719579052045,-500.0,0.00021917,3]
[330567552,1719579052055,-500.0,0.00021917,3]
[330567553,1719579052065,-651.41,0.00021917,3]
[330567554,1719579052074,-2472.78,0.00021917,3]
[330567555,1719579052083,-594.03,0.00021917,3]
[330567556,1719579052093,-500.0,0.00021917,3]
[330567557,1719579052102,-500.0,0.00021917,3]
[330567558,1719579052113,-740.34,0.00021917,3]
[330567559,1719579052122,-1360.45,0.00021917,3]
[330567560,1719579052132,-690.63,0.00021917,3]
[330567561,1719579052141,-5965.19,0.00021917,3]
[330567562,1719579052151,-1459.59,0.00021917,3]
[330567563,1719579052161,-6986.14,0.00021917,3]
[330567564,1719579052171,-5226.84,0.00021917,3]
[330567565,1719579052180,-2941.98,0.00021917,3]
[330567566,1719579052190,-500.0,0.00021917,3]
[330567567,1719579052199,-11478.91,0.00021917,3]
[330567568,1719579052208,-5504.59,0.00021917,3]
[330567569,1719579052217,-151.0,0.00021917,2]
[330567570,1719579052226,-1134.54,0.00021917,3]
[330567571,1719579052235,-718.4,0.00021917,3]
[330567572,1719579052244,-586.91917053,0.00021917,3]
[330567573,1719579052253,-500.0,0.00021917,3]
[330567574,1719579052262,-303.52947311,0.00021917,3]
[330567575,1719579052291,-196.47052689,0.00021917,3]
[330567576,1719579052299,-3876.89,0.00021917,3]
[330567577,1719579052310,-1083.98,0.00021917,3]
[330567578,1719579052319,-500.0,0.00021917,3]
[330567579,1719579052327,-1526.19,0.00021917,3]
[330567580,1719579052337,-500.0,0.00021917,3]
[330567581,1719579052346,-899.49,0.00021917,3]
[330567582,1719579052355,-4447.94,0.00021917,3]
[330567583,1719579052366,-1395.96,0.00021917,3]
[330567584,1719579052375,-968.76,0.00021917,3]
[330567585,1719579052384,-500.0,0.00021917,3]
[330567586,1719579052394,-1036.87,0.00021917,3]
[330567587,1719579052403,-1772.59610843,0.00021917,3]
[330567589,1719579265875,10000.0,0.00025,60]
[330567644,1719580231545,-437.3512,0.000139,2]
[330567646,1719580231555,-316.13467542,0.00014966,2]
[330567647,1719580231567,-23.31600142,0.00014966,2]
[330567648,1719580231576,-461.52824134,0.00014966,2]
[330567649,1719580231585,-205.27551127,0.00014973,2]
[330567650,1719580231595,-2888.25761446,0.000163,2]
[330567651,1719580231608,-125.74238554,0.000163,2]
[330567652,1719580231619,-2500.0,0.00017237,2]
[330567653,1719580231629,-300.0,0.00017259,2]
[330567654,1719580231638,-109675.11360285,0.00017337,2]
[330567655,1719580231651,-2009.39774727,0.00017337,2]
[330567656,1719580231684,-600.0,0.00017337,2]
[330567657,1719580231695,-1000.0,0.00017337,2]
[330567658,1719580231751,-2159.97449723,0.00017337,2]
[330567659,1719580231854,-697.11121979,0.00017337,2]
[330567667,1719580237622,-482.89732069,0.00014899,2]
[330567668,1719580237633,-83.45248117,0.00017252,2]
[330567669,1719580237645,-1158.52186684,0.00017252,2]
[330567670,1719580237655,-6049.76943316,0.00017337,2]
[330567671,1719580237666,-6153.896,0.00017337,2]
[330567672,1719580237707,-45719.13836054,0.00017337,2]
[330567673,1719580237815,-28595.34813619,0.00017337,2]
[330567674,1719580237827,-30963.59706,0.00017337,2]
[330567675,1719580237840,-33017.57440624,0.00017337,2]
[330567676,1719580237851,-40188.70718728,0.00017337,2]
[330567677,1719580237863,-835.77,0.00017337,2]
[330567678,1719580237875,-11125.93610404,0.00017337,2]
[330567679,1719580237885,-1683.77344993,0.00017352,2]
[330567680,1719580237895,-1556.34,0.00017534,2]
[330567681,1719580237904,-470.71,0.00017716,2]
[330567682,1719580237915,-1241.97434798,0.00017808,2]
[330567683,1719580237924,-150.0,0.00017853,2]
[330567684,1719580237934,-499.99,0.00017853,2]
[330567685,1719580237943,-150.99,0.00017853,2]
[330567686,1719580237953,-1683.77344988,0.00017897,2]
[330567687,1719580237963,-1683.77344988,0.00018442,2]
[330567688,1719580237973,-199.0,0.00018846,2]
[330567689,1719580237983,-1683.77344988,0.00018987,2]
[330567690,1719580237994,-500.0,0.00019025,2]
[330567691,1719580238004,-280.23,0.0001907,2]
[330567692,1719580238013,-250.0,0.00019328,2]
[330567693,1719580238026,-174.49944535,0.00019351,2]
[330567695,1719580238037,-1000.0,0.00019362,2]
[330567697,1719580238048,-250.0,0.00019386,2]
[330567700,1719580238058,-1683.77344988,0.00019532,2]
[330567702,1719580238068,-3579.0,0.000196,5]
[330567704,1719580238080,-7371.17,0.00019799,2]
[330567707,1719580238090,-305.3305634,0.00019899,2]
[330567708,1719580238102,-500.0,0.0001993,2]
[330567711,1719580238112,-200.0,0.0001993,2]
[330567712,1719580238123,-470.71,0.0001998,2]
[330567715,1719580238135,-6274.87852259,0.0002,2]
[330567717,1719580238146,-8210.08410233,0.0002,2]
[330567719,1719580238157,-155.0,0.0002,2]
[330567721,1719580238167,-256.29313938,0.0002,2]
[330567723,1719580238178,-327.02420312,0.0002,2]
[330567725,1719580238189,-155.41554942,0.0002,2]
[330567727,1719580238199,-24000.0,0.0002,2]
[330567729,1719580238210,-1683.77344988,0.00020076,2]
[330567731,1719580238220,-166.58,0.0002047,2]
[330567733,1719580238234,-153.32,0.0002047,2]
[330567735,1719580238249,-354.09,0.0002047,2]
[330567737,1719580238261,-1683.77344988,0.00020621,2]
[330567739,1719580238272,-20826.4401246,0.000208,2]
[330567741,1719580238293,-150.0,0.00020853,2]
[330567744,1719580238306,-318.15881835,0.000209,2]
[330567746,1719580238318,-1250.0,0.00021,2]
[330567748,1719580238329,-518.49060264,0.00021,2]
[330567749,1719580238341,-1487.60286604,0.00021,2]
[330567751,1719580238352,-7451.04,0.0002101,2]
[330567752,1719580238363,-1683.77344988,0.00021166,2]
[330567754,1719580238375,-400.0,0.000212,7]
[330567755,1719580238385,-1487.60286604,0.00021282,2]
[330567757,1719580238396,-900.0,0.000213,7]
[330567759,1719580238407,-1400.0,0.000214,7]
[330567760,1719580238418,-500.10924938,0.000214,2]
[330567762,1719580238429,-1900.0,0.000215,7]
[330567763,1719580238439,-1487.60286604,0.0002159,2]
[330567765,1719580238450,-2300.0,0.000216,7]
[330567766,1719580238461,-152.91,0.00021644,2]
[330567768,1719580238471,-400.0,0.000217,7]
[330567770,1719580238481,-1487.60286604,0.00021709,2]
[330567771,1719580238492,-1683.77344988,0.00021711,2]
[330567773,1719580238502,-205.77856842,0.00021717,2]
[330567775,1719580238512,-423.99,0.00021719,2]
[330567776,1719580238522,-155.04,0.00021719,2]
[330567778,1719580238531,-164.73,0.00021719,2]
[330567780,1719580238542,-150.0,0.00021719,2]
[330567781,1719580238552,-150.0,0.00021719,2]
[330567783,1719580238561,-304.97,0.00021719,2]
[330567784,1719580238571,-162.31,0.00021719,2]
[330567786,1719580238582,-159.95,0.00021719,2]
[330567787,1719580238594,-354.56,0.00021719,2]
[330567789,1719580238605,-528.03,0.00021719,2]
[330567791,1719580238615,-150.0,0.00021719,2]
[330567793,1719580238626,-423.99,0.00021719,2]
[330567794,1719580238635,-150.0,0.00021719,2]
[330567796,1719580238645,-528.03,0.00021719,2]
[330567798,1719580238655,-150.0,0.00021719,2]
[330567799,1719580238665,-164.73,0.00021719,2]
[330567801,1719580238676,-354.56,0.00021719,2]
[330567803,1719580238686,-150.0,0.00021719,2]
[330567805,1719580238697,-150.0,0.00021719,2]
[330567806,1719580238707,-294.3,0.00021719,2]
[330567807,1719580238718,-150.0,0.00021719,2]
[330567808,1719580238730,-354.56,0.00021719,2]
[330567809,1719580238745,-150.0,0.00021719,2]
[330567810,1719580238760,-150.0,0.00021719,2]
[330567811,1719580238770,-150.0,0.00021719,2]
[330567812,1719580238779,-164.73,0.00021719,2]
[330567813,1719580238788,-150.0,0.00021719,2]
[330567814,1719580238803,-397.08,0.00021719,2]
[330567815,1719580238812,-354.54,0.00021719,2]
[330567816,1719580238822,-150.0,0.00021719,2]
[330567817,1719580238831,-150.0,0.00021719,2]
[330567818,1719580238841,-150.0,0.00021719,2]
[330567819,1719580238851,-150.0,0.00021719,2]
[330567820,1719580238860,-150.0,0.00021719,2]
[330567821,1719580238870,-300.0,0.00021719,2]
[330567822,1719580238880,-1487.60286604,0.00021731,2]
[330567823,1719580238890,-500.0,0.00021741,2]
[330567824,1719580238899,-2975.20573208,0.00021747,2]
[330567825,1719580238909,-19999.99,0.00021757,2]
[330567826,1719580238919,-1000.0,0.00021782,2]
[330567827,1719580238929,-1487.60286604,0.0002179,2]
[330567828,1719580238940,-400.0,0.000218,7]
[330567829,1719580238951,-7438.0143302,0.00021805,2]
[330567830,1719580238961,-155.96,0.00021805,2]
[330567831,1719580238971,-77391.00886723,0.00021815,2]
[330567832,1719580241212,-22608.99113277,0.00021815,2]
[330567833,1719580241222,-1485.33680274,0.00021817,2]
[330567834,1719580241232,-340.90315464,0.00021817,2]
[330567835,1719580241243,-500.0,0.00021864,2]
[330567836,1719580241253,-1485.33680268,0.00021872,2]
[330567837,1719580241262,-205.77856841,0.00021872,2]
[330567838,1719580241271,-175.01349731,0.00021872,2]
[330567839,1719580241283,-400.0,0.000219,7]
[330567840,1719580241292,-155.0,0.000219,2]
[330567841,1719580241301,-257.0,0.000219,2]
[330567842,1719580241310,-1000.38627304,0.000219,2]
[330567843,1719580241319,-2000.0,0.000219,2]
[330567844,1719580241329,-258.0,0.000219,2]
[330567845,1719580241339,-7624.1516181,0.00021905,2]
[330567846,1719580241348,-646.3166548,0.00021905,2]
[330567847,1719580241357,-3070.5560127,0.00021905,2]
[330567848,1719580241366,-5442.0134983,0.00021905,2]
[330567849,1719580241376,-2000.0,0.0002191,2]
[330567850,1719580241385,-45000.0,0.00021915,2]
[330567851,1719580241394,-778.0,0.00021917,2]
[330567852,1719580241404,-1193.09516238,0.00021917,2]
[330567853,1719580241413,-8932.2061491,0.00021917,2]
[330567854,1719580241422,-623.30179214,0.00021917,2]
[330567855,1719580241431,-500.0,0.00021917,3]
[330567856,1719580241441,-500.0,0.00021917,3]
[330567857,1719580241451,-500.0,0.00021917,3]
[330567858,1719580241460,-500.0,0.00021917,3]
[330567859,1719580241469,-500.0,0.00021917,3]
[330567860,1719580241478,-500.0,0.00021917,3]
[330567861,1719580241488,-500.0,0.00021917,3]
[330567862,1719580241500,-500.0,0.00021917,3]
[330567863,1719580241509,-500.0,0.00021917,3]
[330567864,1719580241519,-814.5,0.00021917,3]
[330567865,1719580241528,-500.0,0.00021917,3]
[330567866,1719580241537,-500.0,0.00021917,3]
[330567867,1719580241548,-419.73286376,0.00021917,3]
[330567868,1719580241559,-500.0,0.00021917,3]
[330567869,1719580241569,-500.0,0.00021917,3]
[330567870,1719580241578,-791.51,0.00021917,3]
[330567871,1719580241587,-500.0,0.00021917,3]
[330567872,1719580241597,-500.0,0.00021917,3]
[330567873,1719580241607,-804.72,0.00021917,3]
[330567874,1719580241617,-500.0,0.00021917,3]
[330567875,1719580241628,-500.0,0.00021917,3]
[330567876,1719580241637,-500.0,0.00021917,3]
[330567877,1719580241647,-500.0,0.00021917,3]
[330567878,1719580241657,-1123.44,0.00021917,3]
[330567879,1719580241667,-500.0,0.00021917,3]
[330567880,1719580241676,-500.0,0.00021917,3]
[330567881,1719580241686,-817.0,0.00021917,3]
[330567882,1719580241696,-500.0,0.00021917,3]
[330567883,1719580241705,-1037.81,0.00021917,3]
[330567884,1719580241715,-837.47,0.00021917,3]
[330567885,1719580241726,-500.0,0.00021917,3]
[330567886,1719580241736,-500.0,0.00021917,3]
[330567887,1719580241752,-500.0,0.00021917,3]
[330567888,1719580241761,-678.04,0.00021917,3]
[330567889,1719580241771,-500.0,0.00021917,3]
[330567890,1719580241780,-1816.55,0.00021917,3]
[330567891,1719580241789,-500.0,0.00021917,3]
[330567892,1719580241799,-637.88,0.00021917,3]
[330567893,1719580241808,-500.0,0.00021917,3]
[330567894,1719580241818,-500.0,0.00021917,3]
[330567895,1719580241827,-500.0,0.00021917,3]
[330567896,1719580241836,-500.0,0.00021917,3]
[330567897,1719580241845,-500.0,0.00021917,3]
[330567898,1719580241855,-1002.45,0.00021917,3]
[330567899,1719580241866,-1087.12,0.00021917,3]
[330567900,1719580241875,-522.72414481,0.00021917,3]
[330567901,1719580241885,-500.0,0.00021917,3]
[330567902,1719580241894,-500.0,0.00021917,3]
[330567903,1719580241903,-500.0,0.00021917,3]
[330567904,1719580241913,-500.0,0.00021917,3]
[330567905,1719580241922,-1415.52,0.00021917,3]
[330567906,1719580241932,-500.0,0.00021917,3]
[330567907,1719580241942,-589.38,0.00021917,3]
[330567908,1719580241952,-723.69,0.00021917,3]
[330567909,1719580241962,-979.5,0.00021917,3]
[330567910,1719580241972,-1240.44,0.00021917,3]
[330567911,1719580241983,-500.0,0.00021917,3]
[330567912,1719580241995,-1373.09,0.00021917,3]
[330567913,1719580242004,-500.0,0.00021917,3]
[330567914,1719580242013,-500.0,0.00021917,3]
[330567915,1719580242027,-500.0,0.00021917,3]
[330567916,1719580242036,-500.0,0.00021917,3]
[330567917,1719580242045,-1649.92,0.00021917,3]
[330567918,1719580242054,-500.0,0.00021917,3]
[330567919,1719580242063,-500.0,0.00021917,3]
[330567920,1719580242072,-550.79,0.00021917,3]
[330567921,1719580242081,-1072.86,0.00021917,3]
[330567922,1719580242090,-624.95,0.00021917,3]
[330567923,1719580242099,-500.0,0.00021917,3]
[330567924,1719580242110,-789.11,0.00021917,3]
[330567925,1719580242120,-612.13757692,0.00021917,3]
[330567926,1719580242129,-1418.61,0.00021917,3]
[330567927,1719580242139,-500.0,0.00021917,3]
[330567928,1719580242148,-682.79,0.00021917,3]
[330567929,1719580242158,-923.18,0.00021917,3]
[330567930,1719580242167,-758.83,0.00021917,3]
[330567931,1719580242177,-500.0,0.00021917,3]
[330567932,1719580242186,-500.0,0.00021917,3]
[330567933,1719580242196,-1866.69,0.00021917,3]
[330567934,1719580242207,-2272.51,0.00021917,3]
[330567935,1719580242216,-500.0,0.00021917,3]
[330567936,1719580242226,-1267.03,0.00021917,3]
[330567937,1719580242235,-526.78,0.00021917,3]
[330567938,1719580242247,-500.0,0.00021917,3]
[330567939,1719580242256,-500.0,0.00021917,3]
[330567940,1719580242266,-521.23,0.00021917,3]
[330567941,1719580242275,-838.66,0.00021917,3]
[330567942,1719580242285,-971.74,0.00021917,3]
[330567943,1719580242293,-500.0,0.00021917,3]
[330567944,1719580242303,-500.0,0.00021917,3]
[330567945,1719580242313,-565.14,0.00021917,3]
[330567946,1719580242322,-1276.92,0.00021917,3]
[330567947,1719580242332,-500.0,0.00021917,3]
[330567948,1719580242341,-569.93,0.00021917,3]
[330567949,1719580242351,-719.93,0.00021917,3]
[330567950,1719580242360,-500.0,0.00021917,3]
[330567951,1719580242370,-500.0,0.00021917,3]
[330567952,1719580242379,-500.0,0.00021917,3]
[330567953,1719580242389,-500.0,0.00021917,3]
[330567954,1719580242398,-500.0,0.00021917,3]
[330567955,1719580242407,-664.53,0.00021917,3]
[330567957,1719580242416,-500.0,0.00021917,3]
[330567959,1719580242426,-1267.95,0.00021917,3]
[330567960,1719580242436,-500.0,0.00021917,3]
[330567961,1719580242445,-590.04,0.00021917,3]
[330567962,1719580242454,-1929.78,0.00021917,3]
[330567963,1719580242464,-11008.13,0.00021917,3]
[330567964,1719580242473,-500.0,0.00021917,3]
[330567965,1719580242483,-500.0,0.00021917,3]
[330567967,1719580242493,-500.0,0.00021917,3]
[330567969,1719580242502,-228.2413647,0.00021917,3]
[330567971,1719580242511,-500.0,0.00021917,3]
[330567973,1719580242520,-681.91,0.00021917,3]
[330567975,1719580242530,-954.04,0.00021917,3]
[330567977,1719580242539,-1579.78,0.00021917,3]
[330567979,1719580242549,-500.0,0.00021917,3]
[330567981,1719580242558,-723.34,0.00021917,3]
[330567983,1719580242568,-500.0,0.00021917,3]
[330567985,1719580242577,-500.0,0.00021917,3]
[330567987,1719580242586,-1275.24,0.00021917,3]
[330567990,1719580242597,-1298.3,0.00021917,3]
[330567992,1719580242606,-500.0,0.00021917,3]
[330567994,1719580242615,-500.0,0.00021917,3]
[330567996,1719580242625,-977.13,0.00021917,3]
[330567998,1719580242635,-1371.63,0.00021917,3]
[330568001,1719580242644,-500.0,0.00021917,3]
[330568003,1719580242653,-500.0,0.00021917,3]
[330568004,1719580242663,-500.0,0.00021917,3]
[330568006,1719580242672,-746.74,0.00021917,3]
[330568008,1719580242681,-500.0,0.00021917,3]
[330568010,1719580242690,-2011.63,0.00021917,3]
[330568011,1719580242699,-500.0,0.00021917,3]
[330568013,1719580242708,-1275.38,0.00021917,3]
[330568014,1719580242717,-1467.46,0.00021917,3]
[330568015,1719580242728,-1579.81,0.00021917,3]
[330568016,1719580242737,-500.0,0.00021917,3]
[330568017,1719580242747,-908.83,0.00021917,3]
[330568019,1719580242756,-500.0,0.00021917,3]
[330568020,1719580242764,-500.0,0.00021917,3]
[330568021,1719580242773,-561.48,0.00021917,3]
[330568022,1719580242783,-500.0,0.00021917,3]
[330568023,1719580242792,-1496.53,0.00021917,3]
[330568024,1719580242801,-1681.91,0.00021917,3]
[330568025,1719580242810,-500.0,0.00021917,3]
[330568026,1719580242819,-500.0,0.00021917,3]
[330568027,1719580242828,-1417.12,0.00021917,3]
[330568028,1719580242837,-500.0,0.00021917,3]
[330568029,1719580242846,-565.15,0.00021917,3]
[330568030,1719580242856,-500.0,0.00021917,3]
[330568031,1719580242865,-981.13,0.00021917,3]
[330568032,1719580242875,-1132.33,0.00021917,3]
[330568033,1719580242884,-500.0,0.00021917,3]
[330568034,1719580242893,-897.47,0.00021917,3]
[330568035,1719580242903,-500.0,0.00021917,3]
[330568036,1719580242913,-4076.25,0.00021917,3]
[330568037,1719580242923,-546.03,0.00021917,3]
[330568038,1719580242932,-500.0,0.00021917,3]
[330568039,1719580242941,-1007.1,0.00021917,3]
[330568040,1719580242950,-1094.02,0.00021917,3]
[330568041,1719580242959,-500.0,0.00021917,3]
[330568042,1719580242968,-500.0,0.00021917,3]
[330568043,1719580242978,-500.0,0.00021917,3]
[330568044,1719580242986,-773.03,0.00021917,3]
[330568045,1719580242996,-500.0,0.00021917,3]
[330568046,1719580243005,-572.46,0.00021917,3]
[330568047,1719580243014,-624.27,0.00021917,3]
[330568048,1719580243027,-500.0,0.00021917,3]
[330568049,1719580243037,-988.11,0.00021917,3]
[330568050,1719580243047,-279.86045666,0.00021917,3]
[330568051,1719580243056,-817.72,0.00021917,3]
[330568052,1719580243067,-500.0,0.00021917,3]
[330568053,1719580243076,-500.0,0.00021917,3]
[330568054,1719580243085,-1151.36,0.00021917,3]
[330568055,1719580243094,-500.0,0.00021917,3]
[330568056,1719580243104,-502.09,0.00021917,3]
[330568057,1719580243116,-500.0,0.00021917,3]
[330568058,1719580243125,-500.0,0.00021917,3]
[330568059,1719580243134,-1338.46,0.00021917,3]
[330568060,1719580243145,-500.0,0.00021917,3]
[330568061,1719580243155,-500.0,0.00021917,3]
[330568062,1719580243165,-1182.36,0.00021917,3]
[330568063,1719580243175,-910.08,0.00021917,3]
[330568064,1719580243185,-500.0,0.00021917,3]
[330568065,1719580243196,-628.21,0.00021917,3]
[330568066,1719580243206,-1742.13,0.00021917,3]
[330568067,1719580243216,-669.32,0.00021917,3]
[330568068,1719580243225,-500.0,0.00021917,3]
[330568069,1719580243234,-500.0,0.00021917,3]
[330568070,1719580243245,-500.0,0.00021917,3]
[330568071,1719580243254,-1356.46,0.00021917,3]